Cogmind - Beta 10.1 @@@ ROGUE MODE // 2021.06.17 @ 02:22:10 // Winter2019/RPGLIKE Player: Farfid Result: Destroyed by H-55 Commando with Gauss Rifle Performance ------------- Evolutions (0) 0 Regions Visited (3) 600 Robots Destroyed (44) 220 Value Destroyed (1450) 1450 Prototype IDs (30) 600 Alien Tech Used (0) 0 Bonus (-360) -360 TOTAL SCORE: 2510 Bonus ------- Follower Combat Kills 60 Aligned with FarCom 300 Friendly Fire -720 Cogmind --------- Core Integrity 0/1900 Matter 120/300 Energy 250/250 System Corruption 5% Temperature Cool (0) Movement Rolling (90) Location -10/Exiles Parts ------- > --- POWER (1) -------- Ion Engine > --- PROPULSION (2) --- Light Treads Armored Wheel > --- UTILITY (2) ------ Advanced Terrain Scanner Targeting Computer > --- WEAPON (2) ------- Gauss Rifle > --- INVENTORY (2) ---- Protomatter-33 Rocket Launcher Peak State ------------ > --- POWER ------------ Light Angular Momentum Engine > --- PROPULSION ------- Armored Wheel Armored Wheel > --- UTILITY ---------- Advanced Terrain Scanner Long-range Tractor Beam > --- WEAPON ----------- Heavy Assault Rifle Heavy Assault Rifle > --- INVENTORY -------- Rocket Launcher [Rating: 19] Favorites ----------- Power Light Angular Momentum Engine Engine Light Angular Momentum Engine Power Core Light Nuclear Core Propulsion Armored Wheel Treads Light Treads Wheel Armored Wheel Utility Advanced Terrain Scanner Device Advanced Terrain Scanner Processor Targeting Computer Weapon Heavy Assault Rifle Ballistic Gun Heavy Assault Rifle Launcher Rocket Launcher Build | -11 -10 -10 -10 ------- Run | Scr Mat Min Exi Slots Evolved 3 | 3 . . . Power . | . . . . Propulsion 1 | 1 . . . Utility 1 | 1 . . . Weapon 1 | 1 . . . Parts Attached 24 | 5 5 4 10 Power 4 | 1 . 2 1 Engine 3 | 1 . 1 1 Core 1 | . . 1 . Reactor . | . . . . Propulsion 5 | 2 2 . 1 Treads 1 | . . . 1 Leg . | . . . . Wheel 4 | 2 2 . . Hover . | . . . . Flight . | . . . . Utility 4 | . . 2 2 Device 3 | . . 2 1 Storage . | . . . . Processor 1 | . . . 1 Hackware . | . . . . Protection . | . . . . Artifact . | . . . . Weapon 11 | 2 3 . 6 Energy Gun . | . . . . Energy Cannon . | . . . . Ballistic Gun 9 | 2 3 . 4 Ballistic Cannon . | . . . . Launcher 2 | . . . 2 Special Weapon . | . . . . Impact Weapon . | . . . . Slashing Weapon . | . . . . Piercing Weapon . | . . . . Special Melee Weapon . | . . . . Unidentified Prototypes . | . . . . Parts Lost 4 | . . . 4 Power 1 | . . . 1 Propulsion 1 | . . . 1 Utility 1 | . . . 1 Weapon 1 | . . . 1 Highest Loss Streak 2 | . . . 2 Average Slot Usage (%) 84 | . 71 81 93 Engine 12 | . 14 8 14 Core 1 | . . 5 . Wheel 25 | . 28 28 21 Device 12 | . . 9 21 Processor 2 | . . . 5 Ballistic Gun 27 | . 28 28 27 Naked Turns . | . . . . Heaviest Build 17 | 6 9 17 17 Greatest Support 31 | 31 31 29 29 Greatest Overweight (x) . | . . . . Average Overweight (x) . | . . . . Largest Inventory Capacity 2 | 1 1 2 2 Average Capacity 1 | 1 1 1 2 Most Carried 2 | . 1 2 2 Average Carried 1 | . . 1 1 Final Capacity 2 | 1 1 2 2 Final Carried 2 | . 1 2 2 Class Distribution -------------------- 97% | Mutant Dominant Class ---------------- Mutant | -10/Materials Mutant | -10/Mines Mutant | -10/Exiles Resources | -11 -10 -10 -10 ----------- Run | Scr Mat Min Exi Matter Collected 1150 | 250 118 252 530 Remotely 298 | . . 86 212 Salvage Created 1397 | . 224 343 830 Parts 80 | . 15 16 49 Haulers Intercepted 1 | . 1 . . Recyclers Shooed 2 | . 1 1 . Parts Field Recycled . | . . . . Retrieved Matter . | . . . . Parts Self-Destructed . | . . . . Prevented . | . . . . Kills | -11 -10 -10 -10 ------- Run | Scr Mat Min Exi Combat Hostiles Destroyed 37 | . 5 4 28 Guns 31 | . 5 4 22 AOE 6 | . . . 6 Classes Destroyed 9 | . 3 1 5 Tunneler 1 | . . 1 . Hauler 1 | . 1 . . Watcher 2 | . 2 . . Grunt 19 | . 5 4 10 Brawler 4 | . . . 4 Duelist 1 | . . . 1 Hunter 6 | . . . 6 Programmer 3 | . . . 3 Assembled 6 | . . . 6 Thug 1 | . . 1 . Best Kill Streak 5 | . 3 3 5 Combat Bots Only 5 | . 2 2 5 Max Kills in Single Turn 2 | . 1 1 2 Gunslinging . | . . . . Exploded 2 | . . . 2 Melee . | . . . . Uniques/NPCs Destroyed . | . . . . Combat | -11 -10 -10 -10 -------- Run | Scr Mat Min Exi Damage Taken 3827 | . 287 121 3419 Core 3123 | . 231 95 2797 Absorbed by Shields . | . . . . Redirected to Core 2437 | . 183 84 2170 Core Remaining (%) 100 | 100 . . . Volleys Fired 156 | . 33 23 100 Largest 2 | . 2 2 2 Hottest 51 | . 46 46 51 Shots Fired 294 | . 66 46 182 Gun 285 | . 66 46 173 Cannon . | . . . . Launcher 9 | . . . 9 Special . | . . . . Kinetic 285 | . 66 46 173 Thermal . | . . . . Explosive 9 | . . . 9 Electromagnetic . | . . . . Robot Hit Streak 13 | . 9 10 13 Robot Miss Streak 3 | . 3 3 3 Penetration Max . | . . . . Secondary Targets 5 | . 1 . 4 Max Gunslinging Chain 1 | . 1 . 1 Shots Hit Robots 205 | . 44 32 129 Core Hits 93 | . 18 15 60 Critical Hits 6 | . 1 1 4 Critical Kills 2 | . 1 . 1 Critical Parts Destroyed 4 | . . 1 3 Melee Attacks . | . . . . Impact . | . . . . Slashing . | . . . . Piercing . | . . . . Sneak Attacks . | . . . . Combat Hostiles . | . . . . Follow-up Attacks . | . . . . Damage Inflicted 3778 | . 450 547 2781 Guns 2875 | . 450 547 1878 Cannons . | . . . . Explosions 903 | . . . 903 Melee . | . . . . Ramming . | . . . . Kinetic 2875 | . 450 547 1878 Thermal . | . . . . Explosive 903 | . . . 903 Electromagnetic . | . . . . Impact . | . . . . Slashing . | . . . . Piercing . | . . . . Highest Corruption 5 | . . . 5 Average Corruption 3 | . . . 3 Corruption Purged . | . . . . Effects 7 | . . . 7 Message Errors 1 | . . . 1 Parts Rejected 1 | . . . 1 Data Loss (minor) 1 | . . . 1 Targeting Errors 3 | . . . 3 Weapon Failures 1 | . . . 1 Overload Shots . | . . . . Overflow Damage 54 | . . . 54 Projectiles . | . . . . Explosions 54 | . . . 54 Melee . | . . . . Knockbacks . | . . . . Impact . | . . . . Kinetic . | . . . . Secondary . | . . . . Self-Inflicted Damage . | . . . . Shots . | . . . . Rammed . | . . . . Targets Rammed . | . . . . Kicked . | . . . . Crushed . | . . . . Highest Temperature 9 | . 9 6 6 Average Temperature 3 | . 3 6 3 Received Heat Transfer 552 | . 177 63 312 Siege Activations . | . . . . Robots Corrupted . | . . . . Combat Hostiles . | . . . . Parts Fried . | . . . . Impact Corruptions . | . . . . Robots Melted . | . . . . Combat Hostiles . | . . . . Parts Melted . | . . . . Heat Transferred . | . . . . Parts Sabotaged . | . . . . Parts Stolen . | . . . . Parts Stripped . | . . . . Power Chain Reactions . | . . . . Missiles Intercepted . | . . . . Alert | -11 -10 -10 -10 ------- Run | Scr Mat Min Exi Peak Influence 176 | . 176 134 . Initial 13 | . . 13 . Average 56 | . 52 61 . Maximum Alert Level . | . . . . Low Security (%) 100 | 100 100 100 . Level 1 . | . . . . Level 2 . | . . . . Level 3 . | . . . . Level 4 . | . . . . Level 5 . | . . . . High Security . | . . . . Max Security . | . . . . Squads Dispatched 2 | . 1 1 . Investigation 1 | . . 1 . Extermination . | . . . . Reinforcement 1 | . 1 . . Assault . | . . . . Garrison . | . . . . Intercept . | . . . . Construction Impeded . | . . . . Haulers Reinforced . | . . . . Stealth | -11 -10 -10 -10 --------- Run | Scr Mat Min Exi Distress Signals . | . . . . Communications Jammed . | . . . . Distress Signals . | . . . . Times Spotted 67 | . 10 6 51 Peak Tracking Total 11 | . 2 2 11 Tactical Retreats 6 | . . . 6 Traps | -11 -10 -10 -10 ------- Run | Scr Mat Min Exi Traps Triggered 2 | . 1 1 . Indirectly . | . . . . Trap Hack Attempts . | . . . . Triggered . | . . . . Disarmed . | . . . . Reprogrammed . | . . . . Reused . | . . . . Traps Extracted . | . . . . Installed . | . . . . Triggered . | . . . . Machines | -11 -10 -10 -10 ---------- Run | Scr Mat Min Exi Machines Disabled 7 | . 1 . 6 Max in Single Turn 2 | . 1 . 2 Machines Sabotaged . | . . . . Garrisons Compromised . | . . . . Overloaded Fab Kills . | . . . . Fab Network Shutdowns . | . . . . Hacking | -11 -10 -10 -10 --------- Run | Scr Mat Min Exi Machines Accessed 9 | . 6 2 1 Terminals 6 | . 6 . . Fabricators . | . . . . Repair Stations . | . . . . Recycling Units . | . . . . Scanalyzers . | . . . . Garrison Access . | . . . . Total Hacks 27 | . 24 2 1 Successful 19 | . 16 2 1 Failed 8 | . 8 . . Catastrophic . | . . . . Database Lockouts . | . . . . Manual 18 | . 17 . 1 Terminals 24 | . 24 . . Fabricators . | . . . . Repair Stations . | . . . . Recycling Units . | . . . . Scanalyzers . | . . . . Garrison Access . | . . . . Terminal Hacks 19 | . 16 2 1 Prototype ID Bank 11 | . 11 . . Open Door 2 | . . 2 . Branch Access Points 1 | . 1 . . Unreport Threat 3 | . 3 . . Zone Layout 1 | . 1 . . EX-Prototype ID Bank 1 | . . . 1 Fabricator Hacks . | . . . . Repair Station Hacks . | . . . . Recycling Unit Hacks . | . . . . Scanalyzer . | . . . . Garrison Access Hacks . | . . . . Unauthorized Hacks . | . . . . Terminals . | . . . . Fabricators . | . . . . Repair Stations . | . . . . Recycling Units . | . . . . Scanalyzers . | . . . . Garrison Access . | . . . . Data Cores Recovered . | . . . . Used . | . . . . Hacking Detections 6 | . 6 . . Full Trace Events 2 | . 2 . . Feedback Events . | . . . . Feedback Blocked . | . . . . Robot Schematics Acquired . | . . . . Robots Built . | . . . . Matter . | . . . . Time . | . . . . Total Robot Build Rating . | . . . . Part Schematics Acquired . | . . . . Parts Built . | . . . . Matter . | . . . . Time . | . . . . Total Part Build Rating . | . . . . Parts Repaired . | . . . . Time . | . . . . Parts Recycled . | . . . . Recycled Matter . | . . . . Retrieved Matter . | . . . . Retrieved Components . | . . . . Parts Scanalyzed . | . . . . Part Schematics Acquired . | . . . . Parts Damaged . | . . . . Bothacking | -11 -10 -10 -10 ------------ Run | Scr Mat Min Exi Used RIF Installer . | . . . . Robots Hacked . | . . . . Non-combat . | . . . . Combat . | . . . . Robot Hacks Applied . | . . . . Relay Couplers Released . | . . . . Robots Rewired . | . . . . Allies Hacked . | . . . . Hacks Repelled . | . . . . Allies | -11 -10 -10 -10 -------- Run | Scr Mat Min Exi Total Allies 4 | . . 4 . Largest Group 4 | . . 4 2 Highest-Rated Group 71 | . . 71 32 Highest-Rated Ally 31 | . . 31 16 Total Orders . | . . . . Ally Attacks 16 | . . 11 5 Total Damage 140 | . . 106 34 Kills 2 | . . 2 . Allies Corrupted . | . . . . Allies Melted . | . . . . Intel | -11 -10 -10 -10 ------- Run | Scr Mat Min Exi Robot Analysis Total . | . . . . Derelict Logs Recovered 2 | . . 2 . Drone Launches . | . . . . Drone Recoveries . | . . . . Exploration | -11 -10 -10 -10 ------------- Run | Scr Mat Min Exi Turns Passed 2010 | 34 463 668 845 Spaces Moved 1373 | 31 313 597 432 Core 2 | 2 . . . Treads . | . . . . Legs . | . . . . Wheels 1371 | 29 313 597 432 Hover . | . . . . Flight . | . . . . Fastest Speed 50 | 50 85 90 90 Average Speed 89 | 86 89 90 90 Slowest Speed 90 | 90 90 90 90 Overloaded Moves . | . . . . Propulsion Burnouts . | . . . . Robots Hopped . | . . . . Cave-ins Triggered . | . . . . Exploration Rate (%) 57 | 2 65 98 64 Regions Visited 3 Branch Regions 2 Pre-discovered Areas . | . . . . Known Exits Taken 2 | . 1 1 . Unknown Exits Taken 1 | 1 . . . Scrap Searched 3 | . . 3 . Spaces Dug . | . . . . Terrain Destroyed 26 | . . . 26 Melee . | . . . . Projectile . | . . . . AOE 26 | . . . 26 Terrain Rammed . | . . . . Walls Destroyed . | . . . . Machines Disabled . | . . . . Actions | -11 -10 -10 -10 --------- Run | Scr Mat Min Exi Total 1856 | 35 437 681 703 Wait 217 | . 63 44 110 Move 1370 | 30 312 596 432 Hop . | . . . . Pick Up 12 | . 4 3 5 Fast Attach 14 | 5 1 4 4 Attach . | . . . . Detach . | . . . . Swap 10 | . 4 . 6 Drop 17 | . 7 4 6 Fire 156 | . 33 23 100 Melee . | . . . . Ram . | . . . . Kick . | . . . . Crush . | . . . . Escape Stasis . | . . . . Rewire . | . . . . Trap . | . . . . Miscellaneous 60 | . 13 7 40 Route ------- -11/Scrapyard -10/Materials (discovered 4 exits: *Mat x2 / *Min x2) -10/Mines (discovered 3 exits: *Mat x2 / *Exi) -10/Exiles (discovered 2 exits: [*Min x2]) History --------- Turn | Location | Event 1 | -11/Scrapyard | Upgraded with Propulsion slot (x1) 1 | -11/Scrapyard | Upgraded with Utility slot (x1) 1 | -11/Scrapyard | Upgraded with Weapon slot (x1) 10 | -11/Scrapyard | Discovered new exit (range 16) 35 | -11/Scrapyard | Entered Materials 240 | -10/Materials | Identified exit to Mines 272 | -10/Materials | Discovered new exit (range 8) 311 | -10/Materials | Build established: Mutant 412 | -10/Materials | Discovered new exit (range 10) 498 | -10/Materials | Entered Mines 500 | -10/Mines | Reached level 2 504 | -10/Mines | Assisted by bots powering up and referring to "LRC-V3" 585 | -10/Mines | Received a Mining Laser from a helpful Derelict 673 | -10/Mines | Identified exit to Materials 693 | -10/Mines | Identified exit to Exiles 758 | -10/Mines | Discovered exit to Materials (range 7) 859 | -10/Mines | Met a Derelict who couldn't figure out how to use a Trap Extractor 941 | -10/Mines | Received a Rocket Launcher from a helpful Derelict 979 | -10/Mines | Met a Derelict shopkeep closing up shop 1144 | -10/Mines | Deemed a non-threat by the Exiles lab entrance 1166 | -10/Mines | Entered Exiles 1166 | -10/Exiles | Accompanied by 2 allies 1196 | -10/Exiles | Discovered new exit (range 14) 1221 | -10/Exiles | Met 8R-AWN 1236 | -10/Exiles | Met EX-HEX 1260 | -10/Exiles | Met EX-BIN 1273 | -10/Exiles | Aligned with FarCom system 1274 | -10/Exiles | Given EX-Vault access code 1294 | -10/Exiles | Opened EX-Vault 1315 | -10/Exiles | Warned to stay clear of 0b10 Research branches 1331 | -10/Exiles | Exiles lab attacked by MAIN.C 1364 | -10/Exiles | Attacked by the Exiles 1429 | -10/Exiles | Core integrity fell below 50% 1539 | -10/Exiles | Reached level 3 1565 | -10/Exiles | Core integrity fell below 20% 1593 | -10/Exiles | Discovered new exit (range 10) 1905 | -10/Exiles | Reached level 4 2011 | -10/Exiles | Destroyed by H-55 Commando with Gauss Rifle Last Messages --------------- 01978_ Slug penetrates Wall. 01981_ Slug penetrates B-36 Bruiser. 01984_ System corrupted: Gauss Rifle targeting data glitched. 01984_ Slug penetrates Machine. 01987_ Slug penetrates P-60 Hacker. 01987_ Slug penetrates Wall. 01987_ Hvy. Assault Rifle destroyed. 01990_ Slug penetrates G-34 Mercenary. 01990_ Slug penetrates Wall. 01992_ B-36 Bruiser destroyed. 01993_ Acquired 70 matter. 01993_ Slug penetrates Wall. 01994_ Slug penetrates P-60 Hacker. 01994_ Destroyed Gravmag System. 01996_ Slug penetrates P-60 Hacker. 01996_ P-60 Hacker destroyed. 01996_ Slug penetrates Wall. 02005_ Penetrated by Slug. 02005_ Slug penetrates H-55 Commando. 02008_ Penetrated by Slug. Map ----- +----------------------------------------------------+ | ??????????#?#????????????????????????????????????? | | ?????????????????????????????????????????????????? | | #???????????#??#?????????????????????????????????? | | ??#??????????????????????????????????????????????? | | ?????????????????#?#?????????????????????????#???# | | ?????????????????????????????????????????????????? | | ???????????????????#???????????#?????????????????? | | ?????????#????????#??????????????????????????????# | | ???????????????????#???#?#???????????????????????? | | ????#??#?????????##?##?#???##????????????????????# | | ?????????????###?##????#???#??#??????????????????" | | ??#####??????????#???##??#??????#?#?????????????"" | | ?## ##?????????##???????#????????#???#???????#"" | | ?# #???#??#####?###???#?#?????????##???????#" | | ?# < ##???#????#?#?##????#????##?#?#???##????#" | | ?# ###????????#??#?#?????????#???#???#?#???#"" | | ?# * ###??#???????##???????###????#?????????#" | | ?# !=*##??????#???#??????????####?#?????#??# ?? | | ?## =%#?#??#??????????#????#???#?###?#??##?????? | | ### [=[###?#????##?###??#??????##???#?##?#?????"? | | ??## = * ##????????#??########??##???????#?#?????? | | ##?# = #######????#?#!!! "#?####?#???#??#?##???# | | ???# #""##?????# "#?#?#????#???##??????? | | ?#?## #??#?## "#????????#????????#??? | | ????##" ##??### "#?##?#??#??########??# | | ????#"" ##### *@""#?###??????# """#??# | | ??#?#### ## =/ ""#?#?##?#???#"" """#?## | | ??????### # [==/###???###??#?#"" #??# | | ??#?#???# ## ![h%#??##?##?????#"" #??? | | ??????#?####### ===gh##????#????#?#"" "#?## | | ?#?#???#?#?#?#### *[%=*%#?????????#?# ""#??? | | ?#????##########" !==|!!#######???#?#" =/""#??? | | ?##???#?# !!""""" =%[*% ####?#??#?##"=%####?? | | ???????##! "### [* ######??####!%###?## | | ????????#! "#?## ##### # =# ###" | | ????????#! ##?## [= " | | ????????# !""""""###?#?#"# | | ??????#############??###### % | | ??????##?##?##???#??#?????### % | | ?????#???????##?????????####### | | ????????????#??#?#????????##??## [ [ | | ?????????#??#?##?#????????###?? %* | | ????????????????#???###??#?????? #*% % !%= | | ??????????#??#????????#??????#? ? !|%[ | | ?????????????????????#????##?#?###" = [ | | ??????????????????????#?#?#?##### !%=%% | | ????????????????##?????##??#??#?#"" * != "" | | ????????#??????????????#?#?????#""" """# | | ??????????????????????????#?????"" ""# | | ???????????????????????????????? * ## | +----------------------------------------------------+ Best States ------------- Heat Dissipation 31 Energy Generation 18 Energy Capacity 250 Matter Stores 300 Matter Capacity 300 Sight Range 16 Terrain Scan Range 20 Terrain Scan Density 10 Resistance: KI 10 Resistance: TH 5 Evasion (%) 43 Targeting Accuracy 5 Item Schematics ----------------- None Robot Schematics ------------------ None Fabricated ------------ Nothing Alien Tech Used ----------------- None Achievements -------------- None Challenges ------------ None RPGLIKE | -11 -10 -10 -10 --------- Run | Scr Mat Min Exi Levels Raised 3 | . . 1 2 XP Earned 8169 | 3000 1000 1419 2750 XP Spent 7350 | 2660 . 500 4190 Upgrades 37 | 11 . 1 25 Propulsion Slot 1 | 1 . . . Utility Slot 1 | 1 . . . Weapon Slot 1 | 1 . . . Core Integrity 26 | 2 . . 24 Heat Dissipation 1 | 1 . . . Mass Support 1 | 1 . . . Inventory Capacity 2 | 1 . 1 . Ranged Accuracy 1 | 1 . . . KI Resistance % 2 | 1 . . 1 TH Resistance % 1 | 1 . . . Protomatter Created 460 | . 139 . 321 Integrity Restored 1302 | . 249 132 921 Core 1209 | . 194 94 921 Parts 93 | . 55 38 . Protomatter Decayed 186 | . 53 . 133 Game ------ Seed GlidesysTerrabombDoomcannon Manual? 0 Play Time 00:25:20 Cumulative 410.2 hours Start 2021.06.17 @ 01:59:28 End 2021.06.17 @ 02:22:10 Sessions 1 Manual Loads 0 Difficulty Rogue Special Mode Winter2019/RPGLIKE Game No. 157 Rogue 157 Adventurer 0 Explorer 0 Win Type - Total 29 Types 24/1/3/1/0/0/0/0/0 Lore% 83 Gallery% 91 Achievement% 77 Wizard Run 0 Options --------- ASCII 0 Keyboard 0 Movement Mouse Keybinds 0 Fullscreen 2 Font 12/Smallcaps Map View 83x54 Tactical HUD 1 Map Filters NONE Filters NONE Steam X RUN: 5f908a34-71ce-44d1-8007-35dc7ca69d7b